{"text_format":"3","workbook":"xlsx","n_sheets":3,"sheets":["LD","Translation","Selections"],"not_rendered":{"images":1,"defined_names":3,"comments":1},"read":"whole","date_system":"1900"}

{"sheet":"LD","index":0,"n_rows":88,"n_cols":56,"rows_kept":88,"merged":[[0,43,0,46],[0,48,0,51],[0,53,0,56],[3,0,4,56],[5,0,5,56],[7,28,7,34],[7,35,7,43],[8,1,9,24],[8,30,9,32],[8,38,9,40],[8,46,9,48],[8,49,9,51],[10,30,11,48],[12,43,13,55],[15,10,16,12],[17,52,18,54],[20,17,21,19],[32,4,32,5],[32,7,32,8],[32,18,32,19],[32,21,32,22],[33,32,33,33],[33,35,33,36],[33,46,33,47],[33,49,33,50],[52,46,53,50],[52,52,53,56],[57,40,57,50],[63,40,63,54],[68,48,68,54],[69,48,69,54],[73,26,83,55],[75,15,75,21],[76,15,76,21],[81,15,81,21],[82,15,82,21],[87,0,88,51],[87,52,88,52],[87,53,88,54],[87,55,88,56]]}
[]
[]
[]
[{"$f":"UPPER(Translation!H7)","v":"DVOUKŘÍDLÁ VRATA"}]
[]
[{"$f":"Translation!H3","v":"Objednávkový formulář"}]
[]
[null,{"$f":"Translation!H10","v":"Číslo/název objednávky"},{"$nulls":26},{"$f":"Translation!H11","v":"Počet kusů"},{"$nulls":6},{"$f":"Translation!H12","v":"Dodací týden"}]
[{"$nulls":46},"CZ"]
[]
[{"$nulls":30},{"$f":"Translation!H4","v":"Vše specifikováno při pohledu zevnitř!"}]
[]
[null,{"$f":"Translation!H214","v":"Objednávka na základě vnějšího rozměru RÁMU"},{"$nulls":28},{"$f":"Translation!H303","v":"Provedení profilů"},{"$nulls":12},{"$f":"Translation!H254","v":"Souměrnost křídel"}]
[]
[{"$nulls":32},{"$f":"Translation!H305","v":"60mm, přerušený tepelný most"},{"$nulls":12},{"$f":"Translation!H255","v":"Ano (křídla stejně široká)"}]
[{"$nulls":9},{"$f":"Translation!H215","v":"Šířka rámu"}]
[{"$nulls":13},"mm",{"$nulls":18},{"$f":"Translation!H304","v":"45mm, bez přeruš.tepel.mostu"},{"$nulls":12},{"$f":"Translation!H256","v":"Ne (křídla s různou šířkou)"}]
[{"$nulls":51},{"$f":"Translation!H257","v":"Šířka levého křídla"}]
[{"$nulls":55},"mm"]
[{"$nulls":17},{"$f":"Translation!H216","v":"Výška rámu"},{"$nulls":12},{"$f":"Translation!H229","v":"Umístění: "},{"$nulls":23},{"$f":"Translation!H258","v":"Šířku pravého křídla"}]
[{"$nulls":32},{"$f":"Translation!H230","v":"do otvoru"},{"$nulls":21},{"$f":"Translation!H259","v":"dopočítá TOORS"}]
[{"$nulls":20},"mm"]
[{"$nulls":32},{"$f":"Translation!H231&\" (\"&Translation!H306&\" \"&Translation!H304&\")\"","v":"za otvor (pouze pro 45mm, bez přeruš.tepel.mostu)"}]
[]
[]
[]
[]
[]
[{"$nulls":3},{"$f":"Translation!H217","v":"2LD 01"},{"$nulls":13},{"$f":"Translation!H218","v":"2LD 02"},{"$nulls":13},{"$f":"Translation!H219","v":"2LD 03"},{"$nulls":13},{"$f":"Translation!H220","v":"2LD 04"}]
[{"$nulls":3},{"$f":"Translation!H229&Translation!H230","v":"Umístění: do otvoru"},{"$nulls":13},{"$f":"Translation!H229&Translation!H230","v":"Umístění: do otvoru"},{"$nulls":13},{"$f":"Translation!H229&Translation!H230","v":"Umístění: do otvoru"},{"$nulls":13},{"$f":"Translation!H229&Translation!H230","v":"Umístění: do otvoru"}]
[{"$nulls":3},{"$f":"Translation!H53&Translation!H233","v":"Směr otevírání: ven"},{"$nulls":13},{"$f":"Translation!H53&Translation!H233","v":"Směr otevírání: ven"},{"$nulls":13},{"$f":"Translation!H53&Translation!H234","v":"Směr otevírání: dovnitř"},{"$nulls":13},{"$f":"Translation!H53&Translation!H234","v":"Směr otevírání: dovnitř"}]
[{"$nulls":3},{"$f":"Translation!H235&Translation!H236","v":"Klika:v levém křídle"},{"$nulls":8},{"$f":"Translation!H65","v":"Venku"},{"$nulls":4},{"$f":"Translation!H235&Translation!H237","v":"Klika:v pravém křídle"},{"$nulls":8},{"$f":"Translation!H65","v":"Venku"},{"$nulls":4},{"$f":"Translation!H235&Translation!H236","v":"Klika:v levém křídle"},{"$nulls":8},{"$f":"Translation!H65","v":"Venku"},{"$nulls":4},{"$f":"Translation!H235&Translation!H237","v":"Klika:v pravém křídle"},{"$nulls":8},{"$f":"Translation!H65","v":"Venku"}]
[]
[]
[{"$nulls":12},{"$f":"Translation!H66","v":"Uvnitř"},{"$nulls":13},{"$f":"Translation!H66","v":"Uvnitř"},{"$nulls":13},{"$f":"Translation!H66","v":"Uvnitř"},{"$nulls":13},{"$f":"Translation!H66","v":"Uvnitř"}]
[]
[null,{"$f":"Translation!H67","v":"Typ kliky a zámku"},{"$nulls":27},{"$f":"Translation!H244","v":"Aretace otevřeného křídla"}]
[{"$nulls":31},{"$f":"Translation!H245","v":"Bez aretace (standard)"}]
[{"$nulls":3},"2LDKL 01",null,null,{"$f":"Translation!H285","v":"Klika/klika, štítek, vložka klíč/klíč, standardní zámek"},{"$nulls":24},{"$f":"Translation!H246","v":"Výsuvný zášlap 180mm"}]
[{"$nulls":3},"2LDKL 02",null,null,{"$f":"Translation!H286","v":"Madlo/klika, štítek, vložka klíč/klíč, standardní zámek"},{"$nulls":24},{"$f":"Translation!H247","v":"Výklopný zášlap 400mm"}]
[{"$nulls":3},"2LDKL 05",null,null,{"$f":"Translation!H287","v":"Klika/klika, štítek, vložka klíč/klíč, panikový zámek"}]
[{"$nulls":3},"2LDKL 06",null,null,{"$f":"Translation!H288","v":"Madlo/klika, štítek, vložka klíč/klíč, panikový zámek"},{"$nulls":22},{"$f":"Translation!H299","v":"Aretace zavřeného pasivního křídla"}]
[{"$nulls":3},"2LDKL 13",null,null,{"$f":"Translation!H289","v":"Klika/panikové kování, štítek, vložka klíč/klíč"},{"$nulls":24},{"$f":"Translation!H300","v":"Zástrč dole a nahoře (standard do 2250 mm)"}]
[{"$nulls":3},"2LDKL 14",null,null,{"$f":"Translation!H290","v":"Madlo/panikové kování, štítek, vložka klíč/klíč"},{"$nulls":24},{"$f":"Translation!H301","v":"Skrytá rozvora (standard od 2251 mm)"}]
[{"$nulls":3},"2LDKL 15",null,null,{"$f":"Translation!H291","v":"Klika/klika, štítek, vložka klíč/klíč, 3bodový zámek"}]
[{"$nulls":3},"2LDKL 16",null,null,{"$f":"Translation!H292","v":"Madlo/klika, štítek, vložka klíč/klíč, 3bodový zámek"}]
[]
[null,{"$f":"Translation!H282","v":"Elektrozámek"},{"$nulls":12},{"$f":"Translation!H278","v":"Zavírač"},{"$nulls":14},{"$f":"Translation!H248","v":"Způsob kotvení"}]
[{"$nulls":3},{"$f":"Translation!H59","v":"Ano"},{"$nulls":12},{"$f":"Translation!H279","v":"Ano, s lištou"},{"$nulls":14},{"$f":"Translation!H250","v":"Kotvící plech (standard)"}]
[{"$nulls":3},{"$f":"Translation!H283","v":"pouze pro 2LDKL02, 2LDKL05"},{"$nulls":27},{"$f":"Translation!H253","v":"Skrz rám"}]
[]
[null,{"$f":"Translation!H32","v":"Lamela stucco"},{"$nulls":7},{"$f":"Translation!H33","v":"Lamela hladká"},{"$nulls":9},{"$f":"Translation!H35","v":"Stř. drážka woodgrain"}]
[{"$nulls":3},"671; 9002/9010",{"$nulls":7},"695;",{"$f":"Translation!H166","v":"Ořech/9010"},{"$nulls":8},"660;","9016/9010"]
[{"$nulls":3},"672; 9010/9010",{"$nulls":7},"688;",{"$f":"Translation!H168","v":"Zlatý dub/9010"},{"$nulls":8},"661;","7016/9010",{"$nulls":15},{"$f":"Translation!H75","v":"Okna"}]
[{"$nulls":3},"684; 9005/9010",{"$nulls":17},"662;","9005/9010",{"$nulls":17},1,{"$f":"AO55+1","v":2},{"$f":"AP55+1","v":3},4,5]
[{"$nulls":3},"673; 9006/9010",{"$nulls":5},{"$f":"Translation!H40","v":"Bez drážky woodgrain"},{"$nulls":29},{"$f":"Translation!H73","v":"Sekce"}]
[{"$nulls":3},"694; 9007/9010",{"$nulls":7},"669; ","9016/9010",{"$nulls":6},{"$f":"Translation!H36","v":"Stř. drážka hladká"},{"$nulls":20},{"$f":"Translation!H117","v":"Typ okna"}]
[{"$nulls":3},"754; 1021/9010",{"$nulls":17},"663;",{"$f":"Translation!H173","v":"9016/9010"}]
[{"$nulls":3},"675; 3000/9010",{"$nulls":17},"665;",{"$f":"Translation!H168","v":"Zlatý dub/9010"}]
[{"$nulls":3},"676; 5010/9010",{"$nulls":5},{"$f":"Translation!H38","v":"Bez drážky stucco"},{"$nulls":11},"666;",{"$f":"Translation!H174","v":"Tmavý dub/9010"},{"$nulls":15},{"$f":"Translation!H92","v":"Full Vision sekce"}]
[{"$nulls":3},"677; 6009/9010",{"$nulls":7},"699; ","9010/9010",{"$nulls":27},1,{"$f":"AO61+1","v":2},{"$f":"AP61+1","v":3},4,5]
[{"$nulls":3},"679; 8014/9010",{"$nulls":15},{"$f":"Translation!H34","v":"Lamela woodgrain"},{"$nulls":19},{"$f":"Translation!H73","v":"Sekce"}]
[{"$nulls":3},"678; 7016/9010",{"$nulls":5},{"$f":"Translation!H39","v":"Bez drážky hladká"},{"$nulls":11},"664;",{"$f":"Translation!H173","v":"9016/9010"},{"$nulls":17},{"$f":"Translation!H114","v":"Typ prosklení"}]
[{"$nulls":3},"533; 9010/9002",{"$nulls":7},"667; ","9016/9010"]
[{"$nulls":3},"531; 9002/9002",{"$nulls":7},"680; ","DB 703/9010",{"$nulls":6},{"$f":"Translation!H37","v":"V-profil hladká"}]
[{"$nulls":3},"532; 9006/9002",{"$nulls":7},"668; ","7016/9010",{"$nulls":8},"687;","9006/9010",{"$nulls":15},{"$f":"Translation!H70","v":"Lakování Full Vision rámu"}]
[{"$nulls":3},"536; 9007/9002",{"$nulls":17},"682;","7016/9010",{"$nulls":17},{"$f":"Translation!H60","v":"RAL"},{"$nulls":5},{"$f":"Translation!H61","v":"NCS"}]
[{"$nulls":3},"534; 7016/9002",{"$nulls":17},"539;","9006/9002",{"$nulls":25},{"$f":"Translation!H62","v":"Odstín (kód)"}]
[{"$nulls":3},"535; 5010/9002",{"$nulls":36},{"$f":"Translation!H63","v":"Externí lakování"}]
[{"$nulls":3},"538; 8014/9002",{"$nulls":36},{"$f":"Translation!H64","v":"Interní lakování"}]
[{"$nulls":3},"540; 7021/9002"]
[]
[null,{"$f":"Translation!H68","v":"Lakování panelů"},{"$nulls":24},{"$f":"Translation!H162","v":"Prostor pro Vaše poznámky"}]
[{"$nulls":3},{"$f":"Translation!H60","v":"RAL"},{"$nulls":6},{"$f":"Translation!H61","v":"NCS"}]
[{"$nulls":15},{"$f":"Translation!H62","v":"Odstín (kód)"}]
[{"$nulls":3},{"$f":"Translation!H63","v":"Externí lakování"}]
[{"$nulls":3},{"$f":"Translation!H64","v":"Interní lakování"}]
[]
[null,{"$f":"Translation!H238","v":"Lakování profilů rámu a křídel"}]
[{"$nulls":3},{"$f":"Translation!H60","v":"RAL"},{"$nulls":6},{"$f":"Translation!H61","v":"NCS"}]
[{"$nulls":15},{"$f":"Translation!H62","v":"Odstín (kód)"}]
[{"$nulls":3},{"$f":"Translation!H63","v":"Externí lakování"}]
[{"$nulls":3},{"$f":"Translation!H64","v":"Interní lakování"}]
[]
[{"$nulls":3},{"$f":"Translation!H241","v":"Lakování pantů (pouze při lakování příslušné strany profilů)"}]
[{"$nulls":3},{"$f":"Translation!H242","v":"Lakování zasklívacích lišt (pouze při lakování vnitřní strany profilů křídla)"}]
[]
[{"$f":"\"TOORS CZ s.r.o., Turkova 1338, 504 01 Nový Bydžov, \"&Translation!H2&\", T: +420 495 491 855,  F: +420 498 606 714, e-mail: toors@toors.cz, www.toors.cz\"","v":"TOORS CZ s.r.o., Turkova 1338, 504 01 Nový Bydžov, Česká republika, T: +420 495 491 855,  F: +420 498 606 714, e-mail: toors@toors.cz, www.toors.cz"},{"$nulls":52},"rev.: ",null,2034]

{"sheet":"Translation","index":1,"n_rows":306,"n_cols":59,"rows_kept":306,"hidden":true}
[{"$nulls":7},{"$f":"IF(LD!AU9=I1,1,IF(LD!AU9=J1,2,IF(LD!AU9=K1,3,IF(LD!AU9=L1,4,IF(LD!AU9=M1,5,IF(LD!AU9=N1,6,\"Chyba\"))))))","v":1},"CZ","EN","DE","PL","NL","FR"]
[{"$nulls":7},{"$f":"VLOOKUP(I2,I:N,$H$1,FALSE)","v":"Česká republika"},"Česká republika","Czech Republic","Tschechische Republik","Republika Czeska","Tsjechische Republiek","République tchèque"]
[{"$nulls":7},"Objednávkový formulář","Objednávkový formulář","Order Form","Bestellformular","Formularz zamówienia","Bestelformulier","Formulaire de commande"]
[{"$nulls":7},"Vše specifikováno při pohledu zevnitř!","Vše specifikováno při pohledu zevnitř!","All views are interior views!","Alles ist bestimmt bei INNENANSICHT","Wszystko jest specyfikowane z widokiem od zewnątrz!","Alles gespecificeerd van binnenuit gezien!","Tout est specifié pour une vue de l’intérieur!"]
[{"$nulls":7},"Průmyslová vrata","Průmyslová vrata","Industrial door","Industrietor","Brama przemysłowa","Industriële deur","Les Portes Industrielles"]
[{"$nulls":7},"Garážová vrata","Garážová vrata","Garage door","Garagentor","Brama garażowa","Garagedeur","Porte de garage"]
[{"$nulls":7},"Dvoukřídlá vrata","Dvoukřídlá vrata","Double leaf door","Zweiflüglig Tor","Brama dwuskrzydłowa","Tweevleugelige deur","Portail à deux battants"]
[{"$nulls":7},"Boční vstupní dveře (ManDoor)","Boční vstupní dveře (ManDoor)","Side entrance door (ManDoor)","Nebeneingangstür (ManDoor)","Boczne drzwi wejściowe (ManDoor)","Deur voor zij-ingang","Porte d’entrée latérale (ManDoor)"]
[{"$nulls":7},"Boční vstupní dveře (ManDoor NG)","Boční vstupní dveře (ManDoor NG)","Side entrance door (ManDoor NG)","Nebeneingangstür (ManDoor NG)","Boczne drzwi wejściowe (ManDoor NG)","Deur voor zij-ingang NG","Porte d’entrée latérale (ManDoor NG)"]
[{"$nulls":7},"Číslo/název objednávky","Číslo/název objednávky","Order No. or name","Auftragsnummer","Nr/nazwa zamówienia","Ordernummer/ordernaam","Numéro/dénomination de la commande"]
[{"$nulls":7},"Počet kusů","Počet kusů","Quantity","Stückzahl","Ilość sztuk","Aantal stuks","Quantité"]
[{"$nulls":7},"Dodací týden","Dodací týden","Delivery week","Lieferwoche","Tydzień dostawy","Leveringsweek","Semaine de livraison"]
[{"$nulls":7},"Ostění","Ostění","Side room","Leibung","Węgarek","Bekleding","Chambranle"]
[{"$nulls":7},"Levé","Levé","Left","Links","Lewy","Links","Gauche"]
[{"$nulls":7},"Pravé","Pravé","Right","Rechts","Prawy","Rechts","Droit"]
[{"$nulls":7},"Výška překladu","Výška překladu","Height of lintel","Sturzhöhe","Wysokość nadproża","Hoogte van de bovenste draagconstr.","Hauteur du linteau"]
[{"$nulls":7},"Šířka otvoru (W)","Šířka otvoru (W)","Width of opening (W)","Lichte Breite","Szerokość otworu (W)","Breedte van de open. (B)","Largeur de l'ouverture (W)"]
[{"$nulls":7},"Výška otvoru (H)","Výška otvoru (H)","Height of opening (H)","Lichte Höhe","Wysokość otworu (H)","Hoogte van de opening (H)","Hauteur de l'ouverture (H)"]
[{"$nulls":7},"Typ vedení","Typ vedení","Lift type","Umlenkung (Beschlagstyp)","Rodzaj prowadzenia","Type geleiding","Type de guide"]
[{"$nulls":7},"Standardní vedení (min. 350 mm)","Standardní vedení (min. 350 mm)","Standard lift (min. 350 mm)","Standardbeschlag SL 350","Prowad. standard. (min 350 mm)","Standaardgeleiding (min. 350 mm)","Guide standard (min. 350 mm)"]
[{"$nulls":7},"Standardní vedení (min. 420 mm)","Standardní vedení (min. 420 mm)","Standard lift (min. 420 mm)","Standardbeschlag SL 420","Prowad. standard. (min 420 mm)","Standaardgeleiding (min. 420 mm)","Guide standard (min. 420 mm)"]
[{"$nulls":7},"Zvýšené vedení","Zvýšené vedení","High lift","Hochführung","Prowad. podwyższone","Verhoogde geleiding","Guide surélevé"]
[{"$nulls":7},"Zvýšené vedení, T-door","Zvýšené vedení, T-door","High lift, T-Door","Hochführung - Federwelle unten","Prowad. podwyższone, T-door","Verhoogde geleiding, T-deur","Guide surélevé, T-door"]
[{"$nulls":7},"Vertikální vedení","Vertikální vedení","Vertical lift","Vertikalbesch. - Senkrechtläufer","Prowad. pionowe","Verticale geleiding","Guide vertical"]
[{"$nulls":7},"Vertikální vedení, T-Door","Vertikální vedení, T-Door","Vertical lift, T-Door","Vertikalbeschl. - Federwelle unt.","Prowad. pionowe, T-door","Verticale geleiding, T-deur","Guide vertical, T-Door"]
[{"$nulls":7},"Snížené vedení (min. 200 mm)","Snížené vedení (min. 200 mm)","Low lift (min. 200 mm)","Niedrigsturz (min. 200 mm)","Prowad. obniżone (min 200 mm)","Verlaagde geleiding (min. 200 mm)","Guide rabaissé (min. 200 mm)"]
[{"$nulls":7},"Snížené vedení (min. 230 mm)","Snížené vedení (min. 230 mm)","Low lift (min. 230 mm)","Niedrigsturz (min. 230 mm)","Prowad. obniżone (min 230 mm)","Verlaagde geleiding (min. 230 mm)","Guide rabaissé (min. 230 mm)"]
[{"$nulls":7},"Vedení pod úhlem","Vedení pod úhlem","Following the roof","Dachfolgebeschlag","Prowadzenie pod kątem","Geleiding onder een hoek","Guide oblique"]
[{"$nulls":7},"Renovační systém","Renovační systém","Renovation system","Renovierungssystem","System renowacyjny","Renovatiesysteem","Système de rénovation"]
[{"$nulls":7},"Snížené vedení (min. 200 mm)","Snížené vedení (min. 200 mm)","Low lift (min. 200 mm)","Niedrigsturz (min. 200 mm)","LHF-C Low Lift","LHF-C Low Lift","LHF-C Low Lift"]
[{"$nulls":7},"Snížené vedení (min. 90 mm)","Snížené vedení (min. 90 mm)","Low lift (min. 90 mm)","Niedrigsturz (min. 90 mm)","Prowad. obniżone (min 90 mm)","Verlaagde geleiding (min. 90 mm)","Guide rabaissé (min. 90 mm)"]
[{"$nulls":7},"Lamela stucco","Lamela stucco","Lamella stucco","Lamelle stucco","Płytka stucco","Lamel stucwerk","Lamelle stucco"]
[{"$nulls":7},"Lamela hladká","Lamela hladká","Lamella smooth","Lamelle glatt","Płytka gładka","Lamel glad","Lamelle lisse"]
[{"$nulls":7},"Lamela woodgrain","Lamela woodgrain","Lamella woodgrain","Lamelle Woodgrain","Płytka woodgrain","Lamel houtnerf","Lamelle woodgrain"]
[{"$nulls":7},"Stř. drážka woodgrain","Stř. drážka woodgrain","Central rib woodgrain","Mittelsicke Woodgrain","Przetłocz. centralne woodgr.","Centrale groef houtnerf","Rainure centrale woodgrain"]
[{"$nulls":7},"Stř. drážka hladká","Stř. drážka hladká","Central rib smooth","Mittelsicke Glatt","Przetłocz. centralne gładka","Centrale groef glad","Rainure centrale lisse"]
[{"$nulls":7},"V-profil hladká","V-profil hladká","V-profile smooth","V-Profil glatt ","V-profil gładka","V-profiel glad","Profilé en V lisse"]
[{"$nulls":7},"Bez drážky stucco","Bez drážky stucco","Flat stucco","Ohne Sicke stucco","Bez przetłoczenia stucco","Zonder groef stucwerk","Sans rainure stucco"]
[{"$nulls":7},"Bez drážky hladká","Bez drážky hladká","Flat smooth","Ohne Sicke glatt","Bez przetłoczenia gładka","Zonder groef glad","Sans rainure lisse"]
[{"$nulls":7},"Bez drážky woodgrain","Bez drážky woodgrain","Flat woodgrain","Ohne Sicke woodgrain","Bez przetłoczenia woodgrain","Zonder groef houtnerf","Sans rainure woodgrain"]
[{"$nulls":7},"Kazeta woodgrain","Kazeta woodgrain","Cassette woodgrain","Kasette Woodgrain","Kaseton woodgrain","Cassette houtnerf","Cassette woodgrain"]
[{"$nulls":7},"Jiný:","Jiný:","Other:","Anderes:","Inny:","Anders:","Autre :"]
[{"$nulls":7},"Vstupní dveře","Vstupní dveře","Passdoor","Schlupftür","Drzwi wejściowe","Toegangsdeur","Porte d’entrée"]
[{"$nulls":7},"Výška prahu","Výška prahu","Height of threshold","Höhe der Schwelle","Wysokość progu","Drempelhoogte","Hauteur du seuil"]
[{"$nulls":7},"Standardní práh (220 mm)","Standardní práh (220 mm)","Standard threshold (220 mm)","Standardschwelle (220mm)","Standardowy próg (220 mm)","Standaarddrempel (220 mm)","Seuil standard (220 mm)"]
[{"$nulls":7},"Extra nízký práh (25 mm)","Extra nízký práh (25 mm)","Extra Low Threshold (25 mm)","Extra niedrige Schwelle (25mm)","Ekstra niski próg (25 mm)","Extra lage drempel (25 mm)","Seuil extra-bas (25 mm)"]
[{"$nulls":7},"Kontakt dveří","Kontakt dveří","Passdoor contact","Schlupftürkontakt (Kabelausfürung)","Zestyki drzwi","Contact van de deur","Contact de la porte"]
[{"$nulls":7},"Umístění dveří","Umístění dveří","Position of passdoor","Position der Schlupftür","Umieszczenie drzwi","Plaatsing van de deur","Emplacement de la porte"]
[{"$nulls":7},"Vlevo","Vlevo","Left","Links","W lewo","Links","À gauche"]
[{"$nulls":7},"Uprostřed","Uprostřed","Middle","In der Mitte","Pośrodku","Midden","Au centre"]
[{"$nulls":7},"Vpravo","Vpravo","Right","Rechts","W prawo","Rechts","À droite"]
[{"$nulls":7},"Vlevo a vpravo","Vlevo a vpravo","Left and Right","Links und rechts","W lewo i w prawo","Links en rechts","À gauche et à droite"]
[{"$nulls":7},"Směr otevírání","Směr otevírání","Direction of opening","Öffnungsrichtung","Kierunek otwierania","Openingsrichting","Sens d’ouverture"]
[{"$nulls":7},"panty na levé straně","panty na levé straně","hinges on left","Scharniere innen links","zawiasy po lewej stronie","Scharnieren aan de linkerzijde","charnières du côté gauche"]
[{"$nulls":7},"DIN pravé","DIN pravé","DIN right","DIN rechts","DIN prawe","DIN rechts","DIN droit"]
[{"$nulls":7},"panty na pravé straně","panty na pravé straně","hinges on right","Scharniere innen rechts","zawiasy po prawej stronie","Scharnieren aan de rechterzijde","charnières du côté droit"]
[{"$nulls":7},"DIN levé","DIN levé","DIN left","DIN links","DIN lewe","DIN links","DIN à gauche"]
[{"$nulls":7},"Lakování profilů dveří","Lakování profilů dveří","Painting of passdoor profiles","Lackierung der Schlupftürprofile","Lakierowanie profilów drzwi","Lakken van deurprofielen","Peinture des profilés de la porte"]
[{"$nulls":7},"Ano","Ano","Yes","Ja","Tak","Ja","Oui"]
[{"$nulls":7},"RAL","RAL","RAL","RAL","RAL","RAL","RAL"]
[{"$nulls":7},"NCS","NCS","NCS","NCS","NCS","NCS","NCS"]
[{"$nulls":7},"Odstín (kód)","Odstín (kód)","Shade (code)","Farbton (Kode)","Odcień (kod)","Tint (code)","Teinte (code)"]
[{"$nulls":7},"Externí lakování","Externí lakování","External painting","Außenlackierung","Lakierowanie zewn.","Kleur buitenkant","Peinture extérieure"]
[{"$nulls":7},"Interní lakování","Interní lakování","Internal painting","Innenlackierung","Lakierowanie wewn.","Kleur binnenkant","Peinture intérieure"]
[{"$nulls":7},"Venku","Venku","Out","Außen","Na zewnątrz","Buiten","Extér."]
[{"$nulls":7},{"$f":"VLOOKUP(I66,I:N,$H$1,FALSE)","v":"Uvnitř"},"Uvnitř","In","Innen","Wewnątrz","Binnen","Intér."]
[{"$nulls":7},"Typ kliky a zámku","Typ kliky a zámku","Type of handle and lock","Typ der Klinke","Rodzaj klamki i zamka","Type handvat en slot","Type de poignée et de serrure"]
[{"$nulls":7},"Lakování panelů","Lakování panelů","Painting of panels","Lackierung der Paneele","Lakierowanie paneli","Kleur van panelen","Peinture des panneaux"]
[{"$nulls":7},"Lakování spodní a horní lišty","Lakování spodní a horní lišty","Painting of bottom and top profile","Lackierung der unteren Leiste","Lakierowanie listwy dolnej i górnej","Kleur van de onder- en bovenlat","Peinture des barres supérieure et infér."]
[{"$nulls":7},"Lakování Full Vision rámu","Lakování Full Vision rámu","Painting of Full Visions' frame","Lackierung der Alu-Sektion","Lakierowanie ramy panoramicznej Full Vision","Kleur van Full Vision frame","Peinture du cadre Full Vision"]
[{"$nulls":7},"Lakování výplní","Lakování výplní","Painting of fillings","Lackierung der Füllung der Alu-Sektion","Lakierowanie wypełnienia","Kleur van de voering","Peinture des panneaux de remplissage"]
[{"$nulls":7},"Prosklení sekcí","Prosklení sekcí","Glazing of sections","Verglasung","Przeszklenie sekcji","Beglazing van secties","Vitrage des sections"]
[{"$nulls":7},"Sekce","Sekce","Section","Sektion","Sekcje","Secties","Sections"]
[{"$nulls":7},"Počet v jedné sekci","Počet v jedné sekci","Quantity per 1 section","Stückzahl in einer Sektion","Ilość w jednej sekcji","Aantal in één sectie","Nombre par section"]
[{"$nulls":7},"Okna","Okna","Windows","Fenster","Okna","Vensters","Fenêtre"]
[{"$nulls":7},"203; Oválné 1, CLICK","203; Oválné 1, CLICK","203; Oval 1, CLICK","203; oval 1, CLICK","203; Owalne 1, CLICK","203; Ovaal 1, CLICK","203 ; Ovale 1, CLICK"]
[{"$nulls":7},"205; Hranaté 1, CLICK","205; Hranaté 1, CLICK","205; Rectangular 1, CLICK","205; eckig 1, CLICK","205; Prostokątne 1, CLICK","205; Hoekig 1, CLICK","205 ; Carré 1, CLICK"]
[{"$nulls":7},"207; Hranaté 2","207; Hranaté 2","207; Rectangular 2","207; eckig 2","207; Prostokątne 2","207; Hoekig 2","207 ; Carré 2"]
[{"$nulls":7},"216; Hranaté 9","216; Hranaté 9","216; Rectangular 9","216; eckig 9","216; Prostokątne 9","216; Hoekig 9","216 ; Carré 9"]
[{"$nulls":7},"217; Kulaté","217; Kulaté","217; Round","217; rund","217; Okrągłe","217; Rond","217 ; Rond"]
[{"$nulls":7},"218; Hranaté NEREZ","218; Hranaté NEREZ","218; Rectangular stainless steel","218; eckig, Edelstahl","218; Prostokątne NIERDZ.","218; Hoekig 1 ROESTVRIJ","218 ; Carré INOX"]
[{"$nulls":7},"215; Kulaté NEREZ","215; Kulaté NEREZ","215; Round stainless steel","215; rund, Edelstahl","215; Okrągłe NIERDZ.","215; Rond ROESTVRIJ","215 ; Rond INOX"]
[{"$nulls":7},"211; Oválné 1,  80  mm panel","211; Oválné 1,  80  mm panel","211; Oval 1,  80  mm pannel","211; oval 1,  80  mm Paneel","211; Okrągłe 1, 80 mm panel","211; Ovaal 1, 80 mm paneel","211 ; Ovale 1, panneau de 80 mm"]
[{"$nulls":7},"212; Hranaté 1,  80 mm panel","212; Hranaté 1,  80 mm panel","212; Rectangular 1,  80 mm pannel","212; eckig 1,  80 mm Paneel","212; Prostokątne 1,  80 mm panel","212; Hoek 1, 80 mm paneel","212 ; Carré 1, panneau de 80 mm",{"$nulls":44},1649]
[{"$nulls":7},"216; Hranaté 9, 80 mm panel","216; Hranaté 9, 80 mm panel","216; Rectangular 9, 80 mm pannel","216; eckig 9, 80 mm Paneel","216; Prostokątne 9, 80 mm panel","216; Hoek 9, 80 mm paneel","216 ; Carré 9, panneau de 80 mm"]
[{"$nulls":7},"204; Hranaté 3","204; Hranaté 3","204; Rectangular 3","204; eckig 3","204; Prostokątne 3","204; Hoekig 3","204 ; Carré 3"]
[{"$nulls":7},"206; Hranaté 4","206; Hranaté 4","206; Rectangular 4","206; eckig 4","206; Prostokątne 4","206; Hoekig 4","206 ; Carré 4"]
[{"$nulls":7},"210; Hranaté 7","210; Hranaté 7","210; Rectangular 7","210; eckig 7","210; Prostokątne 7","210; Hoekig 7","210 ; Carré 7"]
[{"$nulls":7},"208; Hranaté 5","208; Hranaté 5","208; Rectangular 5","208; eckig 5","208; Prostokątne 5","208; Hoekig 5","208 ; Carré 5"]
[{"$nulls":7},"202; Hranaté 10","202; Hranaté 10","202; Rectangular 10","202; eckig 10","202; Prostokątne 10","202; Hoekig 10","202 ; Carré 10"]
[{"$nulls":7},"219; Hranaté nerez","219; Hranaté nerez","219; Rectangular stainless steel","219; eckig,  Edelstahl","219; Prostokątne nierdz.","219; Hoekig roestvrij","219 ; Carré inox"]
[{"$nulls":7},"Full Vision sekce","Full Vision sekce","Full Visions sections","Alu-Rahmen Sektion","Full Vision sekcje panoramiczne","Full Vision-sectie","Section Full Vision"]
[{"$nulls":7},"Zateplené sekce","Zateplené sekce","Insulated sections","Alu-Sektion mit isolierter Füllung","Ocieplone sekcje","Geïsoleerde sectie","Section isolée"]
[{"$nulls":7},"Sekce s tahokovem","Sekce s tahokovem","Expanded mesh sections","Streckgitter","Sekcje z siatką aluminiową","Sectie met strekmetaal","Séction avec métal déployé"]
[{"$nulls":7},"Závory, uzamykatelné závory","Závory, uzamykatelné závory","Slide bolts, cylinder locks","Verschließbarer Griff","Rygle, zamki","Grendels, afsluitbare grendels","Barrières, barrière verrouillables"]
[{"$nulls":7},"490; Závora","490; Závora","490; Slide bolt","490; Schubriegel","490; Rygiel","490; Grendel","490 ; Barrière"]
[{"$nulls":7},"491; Závora","491; Závora","491; Slide bolt","491; Schubriegel","491; Rygiel","491; Grendel","491 ; Barrière"]
[{"$nulls":7},"492B; Uzamykatelná závora","492B; Uzamykatelná závora","492B; Cylinder lock","492B; verschließbarer Griff","492B; Zamek","492B; Afsluitbare grendel","492B ; Barrière verrouillable"]
[{"$nulls":7},"493B Uzamykatelná závora","493B Uzamykatelná závora","493B; Cylinder lock","493B verschließbarer Griff","493B; Zamek","493B; Afsluitbare grendel","493B Barrière verrouillable"]
[{"$nulls":7},"495; Uzamykatelná závora","495; Uzamykatelná závora","495; Cylinder lock","495; verschließbarer Griff","495; Zamek","492; Afsluitbare grendel","495 ; Barrière verrouillable"]
[{"$nulls":7},"497A; Uzamykatelná závora","497A; Uzamykatelná závora","497A; Cylinder lock","497A; verschließbarer Griff","497A; Zamek","497A; Afsluitbare grendel","497A ; Barrière verrouillable"]
[{"$nulls":7},"497B; Uzamykatelná závora","497B; Uzamykatelná závora","497B; Cylinder lock","497B; verschließbarer Griff","497B; Zamek","497B; Afsluitbare grendel","497B ; Barrière verrouillable"]
[{"$nulls":7},"498; Uzamykatelná závora","498; Uzamykatelná závora","498; Cylinder lock","498; verschließbarer Griff","498; Zamek","492; Afsluitbare grendel","498 ; Barrière verrouillable"]
[{"$nulls":7},"499B; Uzamykatelná závora","499B; Uzamykatelná závora","499B; Cylinder lock","499B; verschließbarer Griff","499B; Zamek","499B; Afsluitbare grendel","499B ; Barrière verrouillable"]
[{"$nulls":7},"499S; Uzamykatelná závora","499S; Uzamykatelná závora","499S; Cylinder lock","499S; verschließbarer Griff","499S; Zamek","499S; Afsluitbare grendel","499S ; Barrière verrouillable"]
[{"$nulls":7},"Madla","Madla","Handles (grips)","Handgriffe","Uchwyty","Handgrepen","Poignées"]
[{"$nulls":7},"466; Jednostranné madlo","466; Jednostranné madlo","466; Handgrip single - sided","466; Handgriff - einseitig","466; Uchwyt jednostronny","466; Eenzijdige handgreep","466 ; Poignée unilatérale"]
[{"$nulls":7},"460; Oboustranné madlo","460; Oboustranné madlo","460; Handgrip double-sided","460; Handgriff - beiderseits","460; Uchwyt dwustronny","460; Tweezijdige handgreep","460 ; Poignée bilatérale"]
[{"$nulls":7},"463; Oboustranné madlo","463; Oboustranné madlo","463; Handgrip double-sided","463; Handgriff - beiderseits","463; Uchwyt dwustronny","463; Tweezijdige handgreep","463 ; poignée bilatérale"]
[{"$nulls":7},"467; Oboustranné madlo","467; Oboustranné madlo","467; Handgrip double-sided","467; Handgriff - beiderseits","467; Uchwyt dwustronny","467; Tweezijdige handgreep","467 ; Poignée bilatérale"]
[{"$nulls":7},"468; Oboustranné madlo","468; Oboustranné madlo","468; Handgrip double-sided","468; Handgriff - beiderseits","468; Uchwyt dwustronny","468; Tweezijdige handgreep","468 ; Poignée bilatérale"]
[{"$nulls":7},"469; Oboustranné madlo","469; Oboustranné madlo","469; Handgrip double-sided","469; Handgriff - beiderseits","469; Uchwyt dwustronny","469; Tweezijdige handgreep","469 ; Poignée bilatérale"]
[{"$nulls":7},"469S; Oboustranné madlo","469S; Oboustranné madlo","469S; Handgrip double-sided","469S; Handgriff - beiderseits","469S; Uchwyt dwustronny","469S; Tweezijdige handgreep","469S ; Poignée bilatérale"]
[{"$nulls":7},"Typ prosklení","Typ prosklení","Type of glazing","Verglasungstyp","Rodzaj przeszklenia","Type beglazing","Type de vitrage"]
[{"$nulls":7},"Typ zateplené sekce","Typ zateplené sekce","Type of insulated section","Typ der isolierten Sektion","Rodzaj ocieplonej sekcji","Type geïsoleerde sectie","Type de section isolée"]
[{"$nulls":7},"Typ tahokovu","Typ tahokovu","Type of expanded mesh","Typ der Streckgitter","Rodzaj siatki aluminiowej","Type strekmetaal","Type de maillage"]
[{"$nulls":7},"Typ okna","Typ okna","Type of window","Typ der Fenster","Rodzaj okna","Type venster","Type de fenêtre"]
[{"$nulls":7},"250; Dvoustěnné prosklení SAN UV","250; Dvoustěnné prosklení SAN UV","250; Double wall glazing SAN UV","250; Doppelverglasung SAN UV","250; Podwójne przeszklenie SAN UV","250; Dubbelwandige beglazing SAN UV","250 ; Double vitrage SAN UV"]
[{"$nulls":7},"220; Jednostěnné prosklení SAN UV","220; Jednostěnné prosklení SAN UV","220; Single wall glazing SAN UV","220; Einfachverglasung SAN UV","220; Pojedyncze przeszklenie SAN UV","220; Enkelwandige beglazing SAN UV","220 ; Simple vitrage SAN UV"]
[{"$nulls":7},"260; Dvoustěnné prosklení polykarbonát","260; Dvoustěnné prosklení polykarbonát","260; Double wall glazing polycarbonate","260; Doppelverglasung Polycarbonat","260;Podwójne przeszklenie poliwęglan","260; Dubbelwandige polycarbonaatbeglazing","260 ; Double vitrage en polycarbonate"]
[{"$nulls":7},"230; Jednostěnné prosklení polykarbonát","230; Jednostěnné prosklení polykarbonát","230; Single wall glazing polycarbonate","230; Einfachverglasung Polycarbonat","230; Pojedyncze przeszklenie poliwęglan","230; Enkelwandige polycarbonaatbeglazing","230 ; Simple vitrage en polycarbonate"]
[{"$nulls":7},"250.10; Dvoustěnné prosklení SAN UV, 1x ANTI SCRATCH","250.10; Dvoustěnné prosklení SAN UV, 1x ANTI SCRATCH","250.10; Double wall glazing SAN UV, 1x ANTI SCRATCH","250.10; Einfachverglasung SAN UV, 1x kratzfest","250.10; Podwójne przeszklenie SAN UV, 1x ANTI SCRATCH","250.10; Dubbelwandige beglazing SAN UV, 1x ANTI SCRATCH","250.10 ; Double vitrage SAN UV, 1x ANTI SCRATCH"]
[{"$nulls":7},"250.20; Dvoustěnné prosklení SAN UV, 2x ANTI SCRATCH","250.20; Dvoustěnné prosklení SAN UV, 2x ANTI SCRATCH","250.20; Double wall glazing SAN UV, 2x ANTI SCRATCH","250.20; Doppelverglasung SAN UV, 2x kratzfest","251.20; Podwójne przeszklenie SAN UV, 2x ANTI SCRATCH","250.10; Dubbelwandige beglazing SAN UV, 2x ANTI SCRATCH","250.20 ; Double vitrage SAN UV, 2x ANTI SCRATCH"]
[{"$nulls":7},"250.Co; Dvoustěnné prosklení SAN UV; barevné","250.Co; Dvoustěnné prosklení SAN UV; barevné","250.Co; Double wall glazing SAN UV with coloured panes","250.Co; farbige Doppelverglasung SAN UV ","252.Co; Podwójne przeszklenie SAN UV, kolorowe","250.Co; Dubbelwandige beglazing SAN UV; kleurig","250.Co ; Double vitrage SAN UV ; coloré"]
[{"$nulls":7},"270; Zateplené hliníkové výplně stucco","270; Zateplené hliníkové výplně stucco","270; Insulated aluminium stucco fillings","270; Isolierte Alu-Stucco Füllung","270;Ocieplone wypełnienie aluminiowe stucco","270; Geïsoleerde aluminium voering stucwerk","270 ; Panneaux en aluminium isolé stucco"]
[{"$nulls":7},"270.20; Zateplené hliníkové výplně hladké","270.20; Zateplené hliníkové výplně hladké","270.20; Insulated aluminium flat fillings","270.20; Isolierte Alu-Glatte Füllung","270.20; Ocieplone wypełnienie aluminiowe gładkie","270; Geïsoleerde aluminium voering glad","270.20 ; Panneaux en aluminium isolé hladké"]
[{"$nulls":7},"280; Tahokov, oko 16/8","280; Tahokov, oko 16/8","280; Expanded mesh, eye size 16/8","280; Streckgitter 16/8","280; Siatka aluminiowa, oko 16/8","280; Strekmetaal, oog 16/8","280 ; Tôle de choc, œillet 16/8"]
[{"$nulls":7},"280; Tahokov, oko 22/12","280; Tahokov, oko 22/12","280; Expanded mesh, eye size 22/12","280; Streckgitter 22/12","280; Siatka aluminiowa, oko 16/9","280; Strekmetaal, oog 22/12","280 ; Tôle de choc, œillet 22/12"]
[{"$nulls":7},"Ovládání","Ovládání","Control","Bedienung","Sterowanie","Bediening","Commande"]
[{"$nulls":7},{"$f":"VLOOKUP(I130,I:N,$H$1,FALSE)","v":"Manuální"},"Manuální","Manual","Handbed.","Ręczne","Handmatig","Manuelle"]
[{"$nulls":7},"Řetězový převod 1:4","Řetězový převod 1:4","Chain hoist 1:4","Haspelkette 1:4","Przekładnia łańcuchowa 1:4","Kettingtransmissie 1: 4","Transmission à chaîne 1:4"]
[{"$nulls":7},"Motor","Motor","Motor","Antrieb","Silnik","Motor","Moteur"]
[{"$nulls":7},"Motor dodává zákazník","Motor dodává zákazník","Motor supplied by customer","Antrieb bauseits geliefert","Silnik dostarcza klient","De klant levert de motor","Le moteur est fourni par le client"]
[{"$nulls":7},"Typ motoru","Typ motoru","Type of motor","Antrieb-Typ","Rodzaj silnika","Motortype","Type de moteur"]
[{"$nulls":7},"Příslušenství motoru","Příslušenství motoru","Accessories for motor","Zubehör zum Antrieb","Akcesoria do silnika","Motoraccessoires","Accessoires du moteur"]
[{"$nulls":7},"Režim ovládání","Režim ovládání","Operation","Steuerung","Tryb sterowania","Bedieningsmodus","Mode de commande"]
[{"$nulls":7},"Totman","Totman","Dead man","TOTMAN","Totman","Totman","Totman"]
[{"$nulls":7},"Impulsní řízení","Impulsní řízení","Impuls","IMPULS","Impuls","impulsbesturing","Gestion par impulsions"]
[{"$nulls":7},"Dálkové ovládání","Dálkové ovládání","Remote control","FUNK","Zdalne sterowanie","Afstandsbediening","Commande à distance"]
[{"$nulls":7},"Spodní kování","Spodní kování","Bottom bracket","Bodenkonsole","Okucia dolne","Onderste beslag","Ferrures inférieures"]
[{"$nulls":7},"Hliníkové","Hliníkové","Aluminium","Alu-Bodenkonsole","Aluminiowe","Aluminium","En aluminium"]
[{"$nulls":7},"Ocelové, LHR-C, max. 160 kg","Ocelové, LHR-C, max. 160 kg","Galv. steel, LHR-C, max. 160 kg","Stahl-Konsole, LHR-C bis 160kg","Stal., LHR-C, max 160 kg","Staal, LHR-C, max. 160 kg","En acier, LHR-C, max. 160 kg"]
[{"$nulls":7},"Pojistka při prasknutí lanka","Pojistka při prasknutí lanka","Cable break security device","Seilbruchsicherung","Bezpiecznik przy pęknięciu linki","Zekering tegen kabelbreuk","Parachutes câble"]
[{"$nulls":7},"Výztuhy","Výztuhy","Reinforcing struts","Versteifungen","Wzmocnienia","Versterkingen","Renforts"]
[{"$nulls":7},"Pojistka při prasknutí pružiny","Pojistka při prasknutí pružiny","Spring break device","Federbruchsicherung","Bezpiecznik przy pęknięciu sprężyny","Zekering tegen veerbreuk","Parachute ressort"]
[{"$nulls":7},"Řídící jednotka IP 54","Řídící jednotka IP 54","Control  box IP 54","Steuerung IP54","Jedn. sterująca IP 54","Besturingseenh. IP 54","Unité de comm. IP 54"]
[{"$nulls":7},"Řídící jednotka IP 65","Řídící jednotka IP 65","Control  box IP 65","Steuerung IP65","Jedn. sterująca IP 65","Besturingseenh. IP 65","Unité de comm. IP 65"]
[{"$nulls":7},"Frekvenční měnič","Frekvenční měnič","Frequency converter","Frequenzumrichter","Przemiennik częstotliwości","Frequentie-omvormer","Convertisseur de fréquence"]
[{"$nulls":7},"Spirál kabel","Spirál kabel","Helix (spiral) cable","Spiralkabel","Kabel spiralny","Spiraalkabel","Spirale câble"]
[{"$nulls":7},"Bezdrátový přenos (WSD)","Bezdrátový přenos (WSD)","Wireless transmition (WSD)","WDS-Modul","Transmisja bezprzewodowa (WSD)","Draadloze transmissie (WSD)","Transfert sans fil (WSD)"]
[{"$nulls":7},"Dálkové ovladače","Dálkové ovladače","Remote controls","Handsender","Piloty","Afstandsbediening","Boutons de commande à distance"]
[{"$nulls":7},"2kanálové","2kanálové","2-channels","2-Kanal","2-kanałowe","2 kanaals","à 2 canaux"]
[{"$nulls":7},"3kanálové","3kanálové","3-channels","3-Kanal","3-kanałowe","3 kanaals","à 3 canaux"]
[{"$nulls":7},"4kanálové","4kanálové","4-channels","4-Kanal","4-kanałowe","4 kanaals","à 4 canaux"]
[{"$nulls":7},"Externí reflexní fotobuňka","Externí reflexní fotobuňka","External reflex photocell","Externe Fotozelle","Fotokomórka zewn. reflex","Externe reflecterende fotocel","Cellules photo réfléchissante extérieure"]
[{"$nulls":7},"Externí trojtlačítko","Externí trojtlačítko","External tripple button switch box","Extrerner drei-fach-Taster","Trójprzycisk zewn.","externe driedubbele knop","Triple bouton extérieur"]
[{"$nulls":7},"Semafor","Semafor","Traffic light","Ampel","Światła sygnalizacyjne","Seinpaal","Phare"]
[{"$nulls":7},"Řídící jednotka semaforu A800","Řídící jednotka semaforu A800","Control unit for traffic lights A800","Steuerung für Ampelsteuerung A800","Jednostka sterująca świateł sygn. A800","Besturingseenheid seinpaal A800","Unité de commande du phare A800"]
[{"$nulls":7},"Červené světlo","Červené světlo","Red light","Licht-rot","Czerwone światło","Rood licht","Lampe rouge"]
[{"$nulls":7},"Zelené světlo","Zelené světlo","Green light","Licht-grün","Zielone światło","Groen licht","Lampe verte"]
[{"$nulls":7},"Červené + zelené světlo","Červené + zelené světlo","Red + green light","Licht-rot+grün","Czerwone + zielone światło","Rood + groen licht","Lampe rouge + verte"]
[{"$nulls":7},"Prostor pro Vaše poznámky","Prostor pro Vaše poznámky","Your notes","Bemerkungen","Twoje notatki","Ruimte voor uw notities","Espace réservé à vos commentaires"]
[{"$nulls":7},"Větrací mřížky","Větrací mřížky","Air grates","Lüftungsgitter","Kratki wentylacyjne","Ventilatieroosters","Grilles de ventilation"]
[{"$nulls":7},"Černá/bílá","Černá/bílá","Black/white","Scharz/weiß","Czarna/biała","Zwart/wit","Noir/blanc"]
[{"$nulls":7},"Bílá/bílá","Bílá/bílá","White/white","Weiß/weiß","Biała/biała","Wit/wit","Blanc/blanc"]
[{"$nulls":7},"Ořech/9010","Ořech/9010","Nut/9010","Nuss/9010","Orzech/9010","Notenhout/9010","Noyer/9010"]
[{"$nulls":7},"Ořech/9016","Ořech/9016","Nut/9016","Nuss/9016","Orzech/9016","Notenhout/9016","Noyer/9016"]
[{"$nulls":7},"Zlatý dub/9010","Zlatý dub/9010","Golden oak/9010","Eiche Golden/9010","Złoty dąb/9010","Gouden eik/9010","Chêne doré/9010"]
[{"$nulls":7},"Zlatý dub/9016","Zlatý dub/9016","Golden oak/9016","Eiche Golden/9016","Złoty dąb/9016","Gouden eik/9016","Chêne doré/9016"]
[{"$nulls":7},"9010/9010","9010/9010","9010/9010","9010/9010","9010/9010","9010/9010","9010/9010"]
[{"$nulls":7},"Mahagon/9010","Mahagon/9010","Mahagony/9010","Mahagony/9010","Mahoń/9010","Mahonie/9010","Acajou/9010"]
[{"$nulls":7},"Mahagon/9016","Mahagon/9016","Mahagony/9016","Mahagony/9016","Mahoń/9016","Mahonie/9016","Acajou/9016"]
[{"$nulls":7},"9016/9010","9016/9010","9016/9010","9016/9010","9016/9010","9016/9010","9016/9010"]
[{"$nulls":7},"Tmavý dub/9010","Tmavý dub/9010","Dark oak/9010","Eiche Dunkel/9010","Ciemny dąb/9010","Donkere eik/9010","Chêne foncé/9010"]
[{"$nulls":7},"Tmavý dub/9016","Tmavý dub/9016","Dark oak/9016","Eiche Dunkel/9016","Ciemny dąb/9016","Donkere eik/9016","Chêne foncé/9016"]
[{"$nulls":7},"Klíčové spínače, klávesnice","Klíčové spínače, klávesnice","Key contacts and keyboards","Schlüsselschalter, Tastaturen","Przełączniki kluczykowe, klawiatury","Sleutelschakelaars, toetsenborden","Commutateurs à clé, clavier"]
[{"$nulls":7},"856; Kódová klávesnice DigiCode","856; Kódová klávesnice DigiCode","856; Code keyboard DigiCode","856; Kodentaster - DigiCode","856; Klawiatura kodowa DigiCode","856; Codepaneel Digicode","856 ; Clavier à code DigiCode"]
[{"$nulls":7},"860; Dvoutlačítko DuoControl","860; Dvoutlačítko DuoControl","860; Wall remote control DuoControl","860; Wand-Doppeltaster -  DuoControl","860; Dwuprzycisk DuoControl","860; Dubbel knop DuoControl","860 ; Double bouton DuoControl"]
[{"$nulls":7},"855; Klíčový spínač na omítku","855; Klíčový spínač na omítku","855; Key contact surface mounting","855; Schlüsselschalter auf Putz","855; Przełącznik kluczykowy na tynk","855; Sleutelschakelaar op de bepleistering","855 ; Commutateur à clé en surface"]
[{"$nulls":7},"858; Klíčový spínač pod omítku","858; Klíčový spínač pod omítku","858; Key contact concealed mounting","858; Schlüsselschalter unter Putz","858; Przełącznik kluczykowy pod tynk","858; Sleutelschakelaar onder de bepleistering","858 ; Commutateurs à clé encastré"]
[{"$nulls":7},"Externí přijímač","Externí přijímač","External receiver","Externer Empfänger","Odbiornik zewn.","Externe ontvanger","Récepteur extérieur"]
[{"$nulls":7},"Fotobuňka","Fotobuňka","Light barrier","Fotozelle","Fotokomórka","Fotocel","Cellule photo"]
[{"$nulls":7},"Obecná výška [mm]","Obecná výška [mm]","General height [mm]","Allgemeine Höhe","Wysokość ogólna [mm]","Algemene hoogte [mm]","Hauteur générale [mm]"]
[{"$nulls":7},"Krycí plechy","Krycí plechy","Covers for track","Verkleidungsbleche","Osłona prowadzenia","Dekplaten","Tôles de protection"]
[{"$nulls":7},"Svislé vedení","Svislé vedení","Vertical track","Senkrechte Schienen","Pionowe prowadzenie","Verticale geleiding","Guide vertical"]
[{"$nulls":7},"Vodorovný profil","Vodorovný profil","Horizontal cover","Waagrechtes Profil","Profil poziomy","Horizontaal profiel","Profilé horizontal"]
[{"$nulls":7},"\"J\" plechy","\"J\" plechy","\"J\" covers","\"J\" Profil","\"J\" osłony","J-platen","Tôles en « J »"]
[{"$nulls":7},"\"L\" plechy","\"L\" plechy","\"L\" covers","\"L\" Profile","\"L\" osłony","L-platen","Tôles en « L »"]
[{"$nulls":7},"\"L\" plech","\"L\" plech","\"L\" cover","\"L\" Profil","\"L\" osłona","L-plaat","Tôle en « L »"]
[{"$nulls":7},"Druhý překladový profil","Druhý překladový profil","2nd lintel profile","Zweites Sturzprofil","Drugi profil nadproża","Tweede draagbalkprofiel","Second profilé de linteau"]
[{"$nulls":7},"Externí odblokování","Externí odblokování","External release","Externe Entriegelung","Odryglowanie zewn.","Externe deblokkering","Déblocage extérieur"]
[{"$nulls":7},"s cylindrickým zámkem a krytkou","s cylindrickým zámkem a krytkou","Key cylinder and cover","Mit Profilzylinder und einer Kappe","Z zamkiem cylindr. I osłoną","met cilinderslot en afdekking","avec verrou cylindrique et capuchon"]
[{"$nulls":7},"s kulatým zámkem","s kulatým zámkem","Round key cylinder","Mit Rundzylinder","Z okrągłym zamkiem cylindr.","met rond slot","avec verrou rond"]
[{"$nulls":7},{"$f":"VLOOKUP(I194,I:N,$H$1,FALSE)","v":"Předmontovaná hřídel"},"Předmontovaná hřídel","Preassembled shaft","Vormontierte Welle","Montaż wstępny wału","Pre-assemblage van de as","Arbre préassemblé"]
[{"$nulls":7},", do 4000x4000mm",", do 4000x4000mm",", up to 4000x4000",", bis 4000x4000mm",", do 4000x4000mm",", tot 4000x4000mm",", jusqu'à 4000x4000mm"]
[{"$nulls":7},"Zavěšení vedení","Zavěšení vedení","Hanging profiles","Befestigung der waagrechten Schienen","Profile wiszące","Geperforeerde hoeklijn","Cornière de soutien"]
[{"$nulls":7},"30x30, Děrov. úhelník, kulaté otv.","30x30, Děrov. úhelník, kulaté otv.","30x30, Perfer. angle, round holes","30x30, Anhängewinkel mit Rund-Löchern","30x30, Kątownik perf., okrągłe otw.","30x30, Geperforeerde winkelhaak, ronde openingen","30x30, Équerre percée, orifices ronds"]
[{"$nulls":7},"30x30, Děrov. úhelník, oválné otv.","30x30, Děrov. úhelník, oválné otv.","30x30, Perfer. angle, oval holes","30x30, Anhängewinkel mit Oval-Löchern","30x30, Kątownik perf., owalne otw.","30x30, Geperforeerde winkelhaak, ronde openingen","30x30, Équerre percée, orifices ovales"]
[{"$nulls":7},"50x50, Děrov. úhelník, kulaté otv.","50x50, Děrov. úhelník, kulaté otv.","50x50, Perfer. angle, round holes","50x50, Anhängewinkel mit Rund-Löchern","50x50, Kątownik perf., okrągłe otw.","50x50, Geperforeerde winkelhaak, ronde openingen","50x50, Équerre percée, orifices ronds"]
[{"$nulls":7},"50x50, Děrov. úhelník, oválné otv.","50x50, Děrov. úhelník, oválné otv.","50x50, Perfer. angle, oval holes","50x50, Anhängewinkel mit Oval-Löchern","50x50, Kątownik perf., owalne otw.","50x50, Geperforeerde winkelhaak, ronde openingen","50x50, Équerre percée, orifices ovales"]
[{"$nulls":7},"\"L\" profil (pouze LHF-C, LHR-C)","\"L\" profil (pouze LHF-C, LHR-C)","\"L\" profile (LHF-C, LHR-C only)","\"L\" Profile (nur für LHF-C, LHR-C)","„L” profil (tylko LHF-C, LHR-C)","L-profiel (alleen LHF-C, LHR-C)","Profilé en « L » (uniquement pour LHF-C, LHR-C)"]
[{"$nulls":7},"\"L\" profily","\"L\" profily","\"L\" profiles","\"L\" Profile","„L” profile","L-profielen","Profilés en « L »"]
[{"$nulls":7},"Obecná","Obecná","General","Allgemeine","Ogólna ","Algemeen","Hauteur "]
[{"$nulls":7},"výška [mm]","výška [mm]","height [mm]","Höhe [mm]","Wysokość [mm]","Hoogte [mm]","générale [mm]"]
[{"$nulls":7},"Výška ke spodní hraně překladového profilu [mm]","Výška ke spodní hraně překladového profilu [mm]","Height to bottom edge of lintel profile [mm]","Höhe zur unteren Kante des Sturzprofiles [mm]","Wysokość do dolnej krawędzi profilu nadproża [mm]","Hoogte van de onderrand van het draagbalkprofiel [mm]","Hauteur jusqu’au bord inférieur du linteau [mm]"]
[{"$nulls":7},"Výška stropu [mm]","Výška stropu [mm]","Height of ceiling [mm]","Deckenhöhe [mm]","Wysokość stropu [mm]","Hoogte van het plafond [mm]","Hauteur du plafond [mm]"]
[{"$nulls":7},"Překladový profil","Překladový profil","Lintel profile","Sturzprofil","Profil nadproża","Draagbalkprofiel","Profil de linteau"]
[{"$nulls":7},"Lakování překladového profilu","Lakování překladového profilu","Painting of lintel profile","Lackierung des Sturzprofils","Lakierowanie profilu nadproża","Lakken van Draagbalkprofiel","Peinture du profil de linteau"]
[{"$nulls":7},"Lakování krycích plechů","Lakování krycích plechů","Painting of tracks' covers","Lackierung der Verkleidungsbleche","Lakierowanie osłon","Lakken van dekplatten","Peinture des tôles de protection"]
[{"$nulls":7},"Standardní situace","Standardní situace","Standard situation","Standardsituation","Sytuacja standardowa","Standaard situatie","Situation standard"]
[{"$nulls":7},"Nestandardní situace","Nestandardní situace","Non-standard situation","Ungewöhnliche Situation","Sytuacja niestandardowa","Atypische situatie","Situation non standard"]
[{"$nulls":7},"Těsnění s přerušeným tepelným mostem","Těsnění s přerušeným tepelným mostem","Termal break sealing","Thermisch getrennte Dichtung","Uszczelnienie z mostkiem cieplnym","Thermische onderbreking afdichting","Joint de rupture thermique"]
[{"$nulls":7},"Objednávka na základě rozměrů OTVORU","Objednávka na základě rozměrů OTVORU","Order based on OPENING dimensions","Bestellung aufgrund der Öffnungsmaße","Zamówienie na podstawie wymiarów OTWORU","Bestelling op basis van de maten van de OPENING","Commande sur la base des dimensions de l’ORIFICE"]
[{"$nulls":7},"Objednávka na základě vnějšího rozměru RÁMU","Objednávka na základě vnějšího rozměru RÁMU","Order based on outer FRAME dimensions","Bestellung  aufgrund der Rahmenaußenmaße","Zamówienie na podstawie zewnętrznych wymiarów RAMY","Bestelling op basis van de maten van het FRAME","Commande sur la base des dimensions du CADRE"]
[{"$nulls":7},"Šířka rámu","Šířka rámu","Width of frame","Rahmenbreite","Szerokość ramy","Framebreedte","Largeur du cadre"]
[{"$nulls":7},"Výška rámu","Výška rámu","Height of frame","Rahmenhöhe","Wysokość ramy","Framehoogte","Hauteur du cadre"]
[{"$nulls":7},"2LD 01","2LD 01","2LD 01","2LD 01","2LD 01","2LD 01","2LD 01"]
[{"$nulls":7},"2LD 02","2LD 02","2LD 02","2LD 02","2LD 02","2LD 02","2LD 02"]
[{"$nulls":7},"2LD 03","2LD 03","2LD 03","2LD 03","2LD 03","2LD 03","2LD 03"]
[{"$nulls":7},"2LD 04","2LD 04","2LD 04","2LD 04","2LD 04","2LD 04","2LD 04"]
[{"$nulls":7},"2LD 05","2LD 05","2LD 05","2LD 05","2LD 05","2LD 05","2LD 05"]
[{"$nulls":7},"2LD 06","2LD 06","2LD 06","2LD 06","2LD 06","2LD 06","2LD 06"]
[{"$nulls":7},"2LD 07","2LD 07","2LD 07","2LD 07","2LD 07","2LD 07","2LD 07"]
[{"$nulls":7},"2LD 08","2LD 08","2LD 08","2LD 08","2LD 08","2LD 08","2LD 08"]
[{"$nulls":7},"2LD 09","2LD 09","2LD 09","2LD 09","2LD 09","2LD 09","2LD 09"]
[{"$nulls":7},"2LD 10","2LD 10","2LD 10","2LD 10","2LD 10","2LD 10","2LD 10"]
[{"$nulls":7},"2LD 11","2LD 11","2LD 11","2LD 11","2LD 11","2LD 11","2LD 11"]
[{"$nulls":7},"2LD 12","2LD 12","2LD 12","2LD 12","2LD 12","2LD 12","2LD 12"]
[{"$nulls":7},"Umístění: ","Umístění: ","Position: ","Platzierung:","Umieszczenie:","Plaatsing:","Emplacement : "]
[{"$nulls":7},"do otvoru","do otvoru","in the opening","in die Öffnung","do otworu","in de opening","dans l’orifice"]
[{"$nulls":7},"za otvor","za otvor","behind the opening","hinter die Öffnung","za otwór","achter de opening","derrière l’orifice"]
[{"$nulls":7},"před otvor","před otvor","front of opening","vor die Öffnung","przed otwór","vóór de opening","devant l’orifice"]
[{"$nulls":7},": ven",": ven",": out",": außen",": na zewnątrz",": naar buiten",": vers l’extérieur"]
[{"$nulls":7},": dovnitř",": dovnitř",": in",": innen",": do wewnątrz",": naar binnen",": vers l’intérieur"]
[{"$nulls":7},"Klika:","Klika:","Handle: ","Klinke: ","Klamka: ","Deurkruk:","Poign.: "]
[{"$nulls":7},"v levém křídle","v levém křídle","in left leaf","im linken Flügel","w lewym skrz.","in de linkerdeur","d. le batt. de gauche"]
[{"$nulls":7},"v pravém křídle","v pravém křídle","in right leaf","im rechten Flügel","w prawym skrz.","in de rechterdeur","d. le batt. de droite"]
[{"$nulls":7},"Lakování profilů rámu a křídel","Lakování profilů rámu a křídel","Painting of frame's and leaves' profiles","Lackierung der Rahmen- und Flügelprofile","Lakierowanie profili ramy i skrzydeł","Kleur van frame- en vleugelprofielen","Peinture des profilés du cadre et des battants"]
[{"$nulls":7},"Lakování profilů rámu a křídla","Lakování profilů rámu a křídla","Painting of frame's and leaf's profiles","Lackierung der Rahmen- und Flügelprofile","Lakierowanie profili ramy i skrzydła","Kleur van frame- en vleugelprofielen","Peinture des profilés du cadre et du battant"]
[{"$nulls":7},"Lakování profilů rámu, křídla, nadsvětlíku","Lakování profilů rámu, křídla, nadsvětlíku","Painting of frame's, leaf's and fixed top panel profiles","Lackierung der Rahmen- und Flügel- und Oberlichtprofile","Lakierowanie profili ramy, skrzydła i nadświetla","Kleur van frame-, vleugel- en bovenprofielen","Peinture des profilés du cadre et du battant"]
[{"$nulls":7},"Lakování pantů (pouze při lakování příslušné strany profilů)","Lakování pantů (pouze při lakování příslušné strany profilů)","Painting of hinges (only available if hinged side of profiles is painted)","Lackierung der Bänder (ist nur bei Rahmenlackierung der Bänderseite möglich)","Lakierowanie zawiasów (tylko przy malowaniu odpowiedniej strony profili)","Verven scharnieren (alleen mogelijk als scharnierzijde van profielen is geverfd)","Peinture des charnières (quand les profils sont laqués)"]
[{"$nulls":7},"Lakování zasklívacích lišt (pouze při lakování vnitřní strany profilů křídla)","Lakování zasklívacích lišt (pouze při lakování vnitřní strany profilů křídla)","Painting of glazing lathes (only available if inner side of profiles is painted)","Lackierung der Alu-Leisten (ist nur bei Innen-Rahmenlackierung möglich)","Lakierowanie listew przyszybowych (tylko przy malowaniu wewnętrznych profili skrzydła)","Verven beglazingsstrips (alleen mogelijk als binnenkant van de profielen is geverfd)","Peintures des joints de vitrage (quand les profils intérieurs sont laqués)"]
[{"$nulls":7},"Typ zarážky","Typ zarážky","Door stopper","Typ der Verriegelung","Rodzaj ogranicznika","Type vanger","Type d’arrêt de porte"]
[{"$nulls":7},"Aretace otevřeného křídla","Aretace otevřeného křídla","Securing of opened leaf","Fixierung des Gehflügels","Blokowanie otwartego  skrzydła","Vergrendeling geopend deurblad","Type d´arrêt de battant ouvert"]
[{"$nulls":7},"Bez aretace (standard)","Bez aretace (standard)","No securing (default option)","Ohne Fixierung (Standard)","Bez blokowania (standard)","Geen vergrendeling (standaard optie)","Sans arrêt (standard)"]
[{"$nulls":7},"Výsuvný zášlap 180mm","Výsuvný zášlap 180mm","Sliding stopper 180mm","Feststellfuß - ausziehbar 180mm","Wysuwany ogranicznik","Uitschuifbare voetgrendel 180 mm","Arrêt de porte coulissant 180 mm"]
[{"$nulls":7},"Výklopný zášlap 400mm","Výklopný zášlap 400mm","Tipping stopper 400 mm","Feststellfuß - aufklappbar 400mm","Składany ogranicznik","Uitklapbare voetgrendel 400mm","Arrêt de porte basculant 400 mm"]
[{"$nulls":7},"Způsob kotvení","Způsob kotvení","Style of installation","Methode der Verankerung","Sposób instalacji","Wijze van verankering","Mode d’ancrage"]
[{"$nulls":7},"Pomocí úhelníků (standard)","Pomocí úhelníků (standard)","By angle brackets (default option)","Mit dem Winkelanker","Za pomocą kątowników (standard)","Met winkelhaken (standaard)","À l’aide d’équerres (standard)"]
[{"$nulls":7},"Kotvící plech (standard)","Kotvící plech (standard)","Anchoring strips (default option)","Befestigungswinkel (Standard)","Płyta kotwiąca","Verankeringstrips (standaard optie)","Plaque d'ancrage (standard)"]
[{"$nulls":7},"Skrz rám (pouze 2KV 01, 02, 03, 04)","Skrz rám (pouze 2KV 01, 02, 03, 04)","Throught frame (only 2LD 01, 02, 03, 04)","Durch den Rahmen (nur 2LD 01, 02, 03, 04)","Przez ramę (tylko 2LD 01, 02, 03, 04)","Door het frame (alleen 2LD 01, 02, 03, 04)","Au travers du cadre (uniquement 2LD 01, 02, 03, 04)"]
[{"$nulls":7},"Skrz rám (pouze MD 01, 02, 03, 04)","Skrz rám (pouze MD 01, 02, 03, 04)","Throught frame (only MD 01, 02, 03, 04)","Durch den Rahmen (nur MD 01, 02, 03, 04)","Przez ramę (tylko MD 01, 02, 03, 04)","Door het frame (alleen MD, 01, 02, 03, 04)","Au travers du cadre (uniquement MD 01, 02, 03, 04)"]
[{"$nulls":7},"Skrz rám","Skrz rám","Throught frame","Durch den Rahmen","Przez ramę","Door het frame","Au travers du cadre"]
[{"$nulls":7},"Souměrnost křídel","Souměrnost křídel","Symmetry of leaves","Torflügelsymmetrie","Symetria skrzydeł","Symmetrie van de vleugels","Symétrie des battants"]
[{"$nulls":7},"Ano (křídla stejně široká)","Ano (křídla stejně široká)","Yes, equal width of both leaves","Ja, Torflügel haben gl. Breite","Tak (skrzydła o tej samej szerokości)","Ja (deurbladen even breed)","Oui (les battants ont la même largeur)"]
[{"$nulls":7},"Ne (křídla s různou šířkou)","Ne (křídla s různou šířkou)","No, leaves with different width","Nein, Torfl. haben versch. Breite","Nie (skrzydła o różnej szerokości)","Nee (deurbl. van verschill. breedtes)","Non (chaque batt. a une largeur diff.)"]
[{"$nulls":7},"Šířka levého křídla","Šířka levého křídla","Width of left leaf","Breite des linken Flügels","Szerokość lewego skrzydła","Breedte van de linker deurblad","Largeur du battant gauche"]
[{"$nulls":7},{"$f":"VLOOKUP(I258,I:N,$H$1,FALSE)","v":"Šířku pravého křídla"},"Šířku pravého křídla","Width of right leaf is","Die Breite des rechten Flügels wird","Szerokość prawego skrzydła","Breedte van de rechter deurblad","Largeur du battant de droite"]
[{"$nulls":7},"dopočítá TOORS","dopočítá TOORS","calculated by TOORS","von TOORS kalkuliert.","doliczy TOORS","wordt berekend door TOORS","sera calculé par TOORS"]
[{"$nulls":7},"Vyplňte prosím buď rozměry otvoru nebo rozměry rámu. Vyplnění obou typů rozměrů může způsobit nejednoznačnost definice rozměrů.","Vyplňte prosím buď rozměry otvoru nebo rozměry rámu. Vyplnění obou typů rozměrů může způsobit nejednoznačnost definice rozměrů.","Please fill in either opening's dimensions or frame's dimensions. Filling in both types of dimensions could cause ambiguity in door specification.","Füllen Sie bitte entweder die Öffnungsmaße oder die Rahmenaußenmaße aus. Die Ausfüllung der beiden Maßentypen kann die Mehrdeutigkeit der Torspezifikation verursachen.","Proszę wpisać bądź wymiary otworu lub wymiary ramy. Wpisanie obu rodzajów wymiarów może spowodować niejednoznaczne zdefiniowanie wymiarów.","Vul ofwel de maten van de opening of de maten van het frame in. Invullen van beide type maten kan onduidelijkheid in de definiëring van de maten veroorzaken.","Veuillez saisir soit les dimensions de l’orifice, soit les dimensions du cadre. La saisie des deux types de dimensions pourrait en effet mener à des ambiguïtés concernant la définition des dimensions."]
[{"$nulls":7},"Počet v levém křídle","Počet v levém křídle","Quantity in left leaf","Stückzahl im linken Flügel","Ilość w lewym skrzydle","Aantal in de linkervleugel","Nombre dans le battant gauche"]
[{"$nulls":7},"Počet v pravém křídle","Počet v pravém křídle","Quantity in right leaf","Stückzahl im rechten Flügel","Ilość w prawym skrzydle","Aantal in de rechtervleugel","Nombre dans le battant droit"]
[{"$nulls":7},"MD 01","MD 01","MD 01","MD 01","MD 01","MD 01","MD 01"]
[{"$nulls":7},"MD 02","MD 02","MD 02","MD 02","MD 02","MD 02","MD 02"]
[{"$nulls":7},"MD 03","MD 03","MD 03","MD 03","MD 03","MD 03","MD 03"]
[{"$nulls":7},"MD 04","MD 04","MD 04","MD 04","MD 04","MD 04","MD 04"]
[{"$nulls":7},"MD 05","MD 05","MD 05","MD 05","MD 05","MD 05","MD 05"]
[{"$nulls":7},"MD 06","MD 06","MD 06","MD 06","MD 06","MD 06","MD 06"]
[{"$nulls":7},"MD 07","MD 07","MD 07","MD 07","MD 07","MD 07","MD 07"]
[{"$nulls":7},"MD 08","MD 08","MD 08","MD 08","MD 08","MD 08","MD 08"]
[{"$nulls":7},"MD 09","MD 09","MD 09","MD 09","MD 09","MD 09","MD 09"]
[{"$nulls":7},"MD 10","MD 10","MD 10","MD 10","MD 10","MD 10","MD 10"]
[{"$nulls":7},"MD 11","MD 11","MD 11","MD 11","MD 11","MD 11","MD 11"]
[{"$nulls":7},"MD 12","MD 12","MD 12","MD 12","MD 12","MD 12","MD 12"]
[{"$nulls":7},"Informace o vzhledu ManDoor","Informace o vzhledu ManDoor","Information about design of ManDoor","Optische Ausführung der Nebentür","Informacje o wyglądzie ManDoor","Informatie over de visuele uitvoering van ManDoor","Informations relative au design de la porte ManDoor"]
[{"$nulls":7},"Bez nadsvětlíku","Bez nadsvětlíku","Without fixed top panel","Ohne Oberlicht","Bez nadświetla","Zonder bovenlicht","Sans imposte"]
[{"$nulls":7},"S nadsvětlíkem","S nadsvětlíkem","Including fixed top panel","Mit Oberlicht","Z nadświetlem","Met bovenlicht","Avec imposte"]
[{"$nulls":7},"Zavírač","Zavírač","Door spring","Türschließer","Samozamykacz","Deurveer/dranger","Ferme-porte"]
[{"$nulls":7},"Ano, s lištou","Ano, s lištou","Yes, with sliding arm","Ja, mit Leiste","Tak, z listwą","Ja, met schuifarm","Avec bras coulissant"]
[{"$nulls":7},"V případě požadavku na pohledovou shodu s vedle stojícími vraty uveďte do poznámky informaci o vratech, se kterými má být tato pozice pohledově shodná.","V případě požadavku na pohledovou shodu s vedle stojícími vraty uveďte do poznámky informaci o vratech, se kterými má být tato pozice pohledově shodná.","In case of requirement for door alignment with other door please clearly specify for which door (order/position).","Wenn diese Position mit einer anderen Position ansichtsgleich gefertigt werden soll, muss man diese Information ausdrücklich bemerken.","W przypadku wymogu zgodności widoku z obok stojącą bramą, podaj w uwagach informacje o bramie, z którą musi być ta pozycja wizualnie taka sama.","Wanneer de wens er is om een deur er gelijk uit te laten zien met een andere deur, geef dan duidelijk aan voor welke deur (order/positie).","En cas des alignements des panneaux avec des portes attenants, notez cette information sur la commande avec lesquelles portes désirez-vous les alignements des panneaux."]
[{"$nulls":7},"nelze pro","nelze pro","not possible for","nicht möglich für","nie można dla","niet mogelijk voor","pas disponible pour"]
[{"$nulls":7},"Elektrozámek","Elektrozámek","Electric lock","Elektrische Türöffner","Elektrozaczep","Elektrisch slot","Gâche électrique"]
[{"$nulls":7},"pouze pro 2LDKL02, 2LDKL05","pouze pro 2LDKL02, 2LDKL05","only for 2LDKL02, 2LDKL05","nur für 2LDKL02, 2LDKL05","tylko 2LDKL02, 2LDKL05","alleen voor 2LDKL02, 2LDKL05","uniquement 2LDKL02, 2LDKL05"]
[{"$nulls":7},"pouze pro MDKL02, MDKL06","pouze pro MDKL02, MDKL06","only for MDKL02, MDKL06","nur für MDKL02, MDKL06","tylko MDKL02, MDKL06","alleen voor MDKL02, MDKL06","uniquement MDKL02, MDKL06"]
[{"$nulls":7},"Klika/klika, štítek, vložka klíč/klíč, standardní zámek","Klika/klika, štítek, vložka klíč/klíč, standardní zámek","Handle /handle, shield, cylindrical lock-key hole, standard lock ","Klinke/Klinke, Schild, Standardschloss","Klamka/klamka, tarczka, wkładka klucz/klucz, zamek standardowy ","Deurkruk/deurkruk, schild, cilinder sleutel/sleutel, standaard-slot","Poignée/poignée, plaquette, serrure standard/ cylindrique"]
[{"$nulls":7},"Madlo/klika, štítek, vložka klíč/klíč, standardní zámek","Madlo/klika, štítek, vložka klíč/klíč, standardní zámek","Grip/handle, shield, cylindrical lock - key hole, standard lock","Knauf/Klinke, Schild, Standardschloss","Uchwyt/klamka, tarczka, wkładka klucz/klucz, zamek standardowy ","Vast handgreep/deurkruk, schild, cilinder sleutel/sleutel, standaard-slot","Bouton/poignée, plaquette, serrure standard/ cylindrique"]
[{"$nulls":7},"Klika/klika, štítek, vložka klíč/klíč, panikový zámek","Klika/klika, štítek, vložka klíč/klíč, panikový zámek","Handle /handle, shield, cylindrical lock-key hole, panic lock","Klinke/Klinke, Schild, Panikschloss","Klamka/klamka, tarczka, wkładka klucz/klucz, zamek antypaniczny","Deurkruk/deurkruk, schild, cilinder sleutel/sleutel, paniek slot","Poignée/poignée, plaquette, serrure anti-panique"]
[{"$nulls":7},"Madlo/klika, štítek, vložka klíč/klíč, panikový zámek","Madlo/klika, štítek, vložka klíč/klíč, panikový zámek","Grip/handle, shield, cylindrical lock– key hole, panic lock","Knauf/Klinke, Schild, Panikschloss","Uchwyt/klamka, tarczka, wkładka klucz/klucz, zamek antypaniczny","Vast handgreep/deurkruk, cilinder sleutel/sleutel, schild, paniek slot","Bouton/poignée, plaquette, serrure anti-panique"]
[{"$nulls":7},"Klika/panikové kování, štítek, vložka klíč/klíč","Klika/panikové kování, štítek, vložka klíč/klíč","Handle /panic exit bar, shield, cylindrical lock-key hole, panic lock","Klinke/Panikbeschlag—Stange, Schild","Klamka/okucia antypaniczne, tarczka, wkładka klucz/klucz","Deurkruk/paniek balk, schild, cilinder sleutel/sleutel","Poignée/monture anti-panique, plaquette,"]
[{"$nulls":7},"Madlo/panikové kování, štítek, vložka klíč/klíč","Madlo/panikové kování, štítek, vložka klíč/klíč","Grip/panic exit bar, shield, cylindrical lock-key hole, panic lock","Knauf/Panikbeschlag—Stange, Schild","Uchwyt/okucia antypaniczne, szyld, wkładka klucz/klucz","Vast handgreep/paniek balk, schild, cilinder sleutel/sleutel","Bouton/monture anti-panique, plaquette,"]
[{"$nulls":7},"Klika/klika, štítek, vložka klíč/klíč, 3bodový zámek","Klika/klika, štítek, vložka klíč/klíč, 3bodový zámek","Handle /handle, shield, cylindrical lock-key hole, 3-point lock","Klinke/Klinke, Schild, 3-fachschloss","Klamka/klamka, tarczka, wkładka klucz/klucz, zamek trzypunktowy","Deurkruk/deurkruk, schild, cilinder sleutel/sleutel, 3 puntslot","Poignée / poignée, plaquette, serrure 3 points"]
[{"$nulls":7},"Madlo/klika, štítek, vložka klíč/klíč, 3bodový zámek","Madlo/klika, štítek, vložka klíč/klíč, 3bodový zámek","Grip /handle, shield, cylindrical lock-key hole, 3-point lock","Knauf/Klinke, Schild, 3-fachschloss","Uchwyt/klamka, tarczka, wkładka klucz/klucz, zamek trzypunktowy","Vast handgreep/deurkruk, schild, cilinder sleutel/sleutel, 3 puntslot","Bouton/poignée, plaquette, serrure 3 points"]
[{"$nulls":7},"rozměr se může lišit při požadavku pohledové shody s vraty","rozměr se může lišit při požadavku pohledové shody s vraty","dimensions can vary in case of requirement for alignment with sectional door","der Maß kann bei Ansichsgleichheit von der Standardausführung abweichen","Wymiar może się różnić w przypadku wymogu zgodności widoku z bramą","Afmetingen kunnen variëren in het geval er wensen zijn voor gelijkenis met sectionaaldeur","Les dimensions se peuvent variées en cas de la demande des alignements des panneaux"]
[{"$nulls":7},"Rozměry mm (WxH)","Rozměry mm (WxH)","Dimension mm (WxH)","Maße mm (BxH)","Wymiar mm (WxH)","Afmeting mm (WxH)","Dimensions mm (WxH)"]
[{"$nulls":7},"Design křídla","Design křídla","Design of door leaf","Design des Torflügels","Design skrzydła drzwi","Ontwerp van deurblad","Design de l'aile de porte"]
[{"$nulls":7},"Široké boční plechy/dvojité  boční panty","Široké boční plechy/dvojité  boční panty","Wide end caps/double side hinges","Breite Endkappen / Doppelscharniere","Szerokie blachy boczne/podwójne zawiasy boczne","Brede eindkappen/dubbele zijscharnieren","Cornière de finition large/Pentures latérales dble"]
[{"$nulls":7},"Ano (standard pro W>=5000 mm)","Ano (standard pro W>=5000 mm)","Yes, (default for W>=5000 mm)","Ja (Standard für Torbreite W>=5000 mm)","Tak (standard dla W>=5000 mm)","Ja (standaard voor B>=5000 mm)","Oui (standard pour W>=5000 mm)"]
[{"$nulls":7},"Ano (standard pro W>=5001 mm)","Ano (standard pro W>=5001 mm)","Yes, (default for W>=5001 mm)","Ja (Standard für Torbreite W>=5001 mm)","Tak (standard dla W>=5001 mm)","Ja (standaard voor B>=5001 mm)","Oui (standard pour W>=5001 mm)"]
[{"$nulls":7},"Aretace zavřeného pasivního křídla","Aretace zavřeného pasivního křídla","Securing of closed passive leaf","Fixierung des Standflügels","Blokowanie zamkniętego skrzydła pasywnego","Vergrendeling gesloten deurblad","Type d´arrêt de battant fermé (passif)"]
[{"$nulls":7},"Zástrč dole a nahoře (standard do 2250 mm)","Zástrč dole a nahoře (standard do 2250 mm)","Sliding bolt top and bottom","Treibriegel oben + unten (Standard bis 2250)","Rygiel (w górę i w dół)","Grendel (boven en beneden)","Barrière haut et bas (standard dans 2250 mm)"]
[{"$nulls":7},"Skrytá rozvora (standard od 2251 mm)","Skrytá rozvora (standard od 2251 mm)","Hidden centre catch with rods","Falztreibriegel (Standard ab 2251mm)","Ukryty rozstaw osi (standard od 2251 mm)","Kantschuifvergrendeling in het midden","Verrou à  entailler (standard depuis 2251 mm)"]
[{"$nulls":7},"Vratová rozvora (baskule)","Vratová rozvora (baskule)","Centre catch with rods"]
[{"$nulls":7},"Provedení profilů","Provedení profilů","Version of profiles","Ausführung der Profile","Wykonanie profili","Version of profiles","Réalisation des profils"]
[{"$nulls":7},"45mm, bez přeruš.tepel.mostu","45mm, bez přeruš.tepel.mostu","45mm, non thermal system","45mm, ohne thermische Trennung","45mm, bez przegrody termicznej","45mm, niet gebroken koude brug","45mm,sans rupt.du pont therm."]
[{"$nulls":7},"60mm, přerušený tepelný most","60mm, přerušený tepelný most","60mm, broken thermal bridge","60mm, mit thermischer Trennung","60mm, z przegrodą termiczną","60mm, gebroken koude brug","60mm,rupteur du pont thermique"]
[{"$nulls":7},"pouze pro","pouze pro","only for","nur für","tylko","alleen voor","uniquement"]

{"sheet":"Selections","index":2,"n_rows":85,"n_cols":56,"rows_kept":85,"hidden":true}
["Výběr jazyka",null,"Výběry pro INDY"]
["CZ",null,{"$f":"Translation!A95","v":0},{"$f":"Translation!A106","v":0},"Okna INDY",{"$f":"Translation!A92","v":0},{"$f":"Translation!A93","v":0},{"$f":"Translation!A94","v":0},{"$f":"Translation!A163","v":0},{"$f":"Translation!A196","v":0},{"$nulls":3},{"$f":"Translation!A144&\" \"&Translation!A11","v":" "}]
["EN",{"$nulls":12},0,3]
["DE",null,{"$f":"Translation!A96","v":0},{"$f":"Translation!A108","v":0},{"$f":"Translation!A76","v":0},{"$f":"Translation!A118","v":0},{"$f":"Translation!A125","v":0},{"$f":"Translation!A127","v":0},{"$f":"Translation!A164","v":0},{"$f":"Translation!A197","v":0},{"$nulls":3},1871,4]
["PL",null,{"$f":"Translation!A97","v":0},{"$f":"Translation!A109","v":0},{"$f":"Translation!A77","v":0},{"$f":"Translation!A119","v":0},{"$f":"Translation!A126","v":0},{"$f":"Translation!A128","v":0},{"$f":"Translation!A165","v":0},{"$f":"Translation!A198","v":0},{"$nulls":3},2501,5]
["NL",null,{"$f":"Translation!A98","v":0},{"$f":"Translation!A107","v":0},{"$f":"Translation!A80","v":0},{"$f":"Translation!A120","v":0},{"$nulls":3},{"$f":"Translation!A199","v":0},{"$nulls":3},3101,6]
["FR",null,{"$f":"Translation!A99","v":0},null,{"$f":"Translation!A79","v":0},{"$f":"Translation!A121","v":0},{"$nulls":3},{"$f":"Translation!A200","v":0},{"$nulls":3},3701,7]
[null,null,{"$f":"Translation!A100","v":0},null,{"$f":"Translation!A78","v":0},{"$f":"Translation!A122","v":0},{"$nulls":7},4311,8]
["Ano",null,{"$f":"Translation!A101","v":0},null,{"$f":"Translation!A81","v":0},{"$f":"Translation!A123","v":0},{"$nulls":7},4921,9]
["Ne",null,{"$f":"Translation!A102","v":0},null,{"$f":"Translation!A82","v":0},{"$f":"Translation!A124","v":0},{"$nulls":7},5531,10]
[null,null,{"$f":"Translation!A103","v":0},null,{"$f":"Translation!A83","v":0},{"$nulls":8},6141,11]
[{"$nulls":4},{"$f":"Translation!A84","v":0}]
[{"$nulls":4},{"$f":"Translation!A85","v":0}]
[]
[null,null,"Výběry pro GUARDY"]
[null,null,{"$f":"Translation!B95","v":0},{"$f":"Translation!B106","v":0},{"$f":"Translation!B75","v":0},{"$f":"Translation!B92","v":0},{"$f":"Translation!B93","v":0},{"$f":"Translation!B94","v":0},{"$f":"Translation!B163","v":0},{"$f":"Translation!B196","v":0}]
[]
[null,null,{"$f":"Translation!B96","v":0},{"$f":"Translation!B107","v":0},{"$f":"Translation!B86","v":0},{"$f":"Translation!B118","v":0},{"$f":"Translation!B125","v":0},{"$f":"Translation!B127","v":0},{"$f":"Translation!B164","v":0},{"$f":"Translation!B197","v":0}]
[null,null,{"$f":"Translation!B97","v":0},{"$f":"Translation!B110","v":0},{"$f":"Translation!B87","v":0},{"$f":"Translation!B119","v":0},{"$f":"Translation!B126","v":0},{"$f":"Translation!B128","v":0},{"$f":"Translation!B165","v":0},{"$f":"Translation!B198","v":0}]
[null,null,{"$f":"Translation!B98","v":0},{"$f":"Translation!B111","v":0},{"$f":"Translation!B88","v":0},{"$f":"Translation!B120","v":0},{"$nulls":3},{"$f":"Translation!B201","v":0}]
[null,null,{"$f":"Translation!B100","v":0},{"$f":"Translation!B108","v":0},{"$f":"Translation!B89","v":0},{"$f":"Translation!B121","v":0}]
[null,null,{"$f":"Translation!B103","v":0},{"$f":"Translation!B109","v":0},{"$f":"Translation!B79","v":0},{"$f":"Translation!B122","v":0}]
[null,null,{"$f":"Translation!B101","v":0},{"$f":"Translation!B112","v":0},{"$f":"Translation!B90","v":0},{"$f":"Translation!B123","v":0}]
[null,null,{"$f":"Translation!B102","v":0},{"$f":"Translation!B113","v":0},{"$f":"Translation!B81","v":0},{"$f":"Translation!B124","v":0}]
[null,null,{"$f":"Translation!B104","v":0},null,{"$f":"Translation!B91","v":0}]
[null,null,{"$f":"Translation!B105","v":0},null,{"$f":"Translation!B82","v":0}]
[{"$nulls":4},{"$f":"Translation!B78","v":0}]
[{"$nulls":4},{"$f":"Translation!B80","v":0}]
[{"$nulls":4},{"$f":"Translation!B76","v":0}]
[{"$nulls":4},{"$f":"Translation!B77","v":0}]
[]
[null,null,"Výběry pro EXT"]
[null,null,{"$f":"Translation!C95","v":0},{"$f":"Translation!C106","v":0},{"$f":"Translation!C75","v":0},{"$f":"Translation!C92","v":0},{"$f":"Translation!C93","v":0},{"$f":"Translation!C94","v":0},{"$f":"Translation!C163","v":0},{"$f":"Translation!C196","v":0}]
[]
[null,null,{"$f":"Translation!C96","v":0},{"$f":"Translation!C107","v":0},{"$f":"Translation!C86","v":0},{"$f":"Translation!C118","v":0},{"$f":"Translation!C125","v":0},{"$f":"Translation!C127","v":0},{"$f":"Translation!C164","v":0},{"$f":"Translation!C197","v":0}]
[null,null,{"$f":"Translation!C97","v":0},{"$f":"Translation!C110","v":0},{"$f":"Translation!C87","v":0},{"$f":"Translation!C119","v":0},{"$f":"Translation!C126","v":0},{"$f":"Translation!C128","v":0},{"$f":"Translation!C165","v":0},{"$f":"Translation!C198","v":0}]
[null,null,{"$f":"Translation!C100","v":0},{"$f":"Translation!C111","v":0},{"$f":"Translation!C88","v":0},{"$f":"Translation!C120","v":0},{"$nulls":3},{"$f":"Translation!C201","v":0}]
[null,null,{"$f":"Translation!C101","v":0},{"$f":"Translation!C108","v":0},{"$f":"Translation!C89","v":0},{"$f":"Translation!C121","v":0}]
[null,null,{"$f":"Translation!C102","v":0},{"$f":"Translation!C109","v":0},{"$f":"Translation!C79","v":0},{"$f":"Translation!C122","v":0}]
[null,null,{"$f":"Translation!C104","v":0},{"$f":"Translation!C112","v":0},{"$f":"Translation!C90","v":0},{"$f":"Translation!C123","v":0}]
[null,null,{"$f":"Translation!C105","v":0},{"$f":"Translation!C113","v":0},{"$f":"Translation!C81","v":0},{"$f":"Translation!C124","v":0}]
[{"$nulls":4},{"$f":"Translation!C91","v":0}]
[{"$nulls":4},{"$f":"Translation!C82","v":0}]
[{"$nulls":4},{"$f":"Translation!C78","v":0}]
[{"$nulls":4},{"$f":"Translation!C80","v":0}]
[{"$nulls":4},{"$f":"Translation!C76","v":0}]
[{"$nulls":4},{"$f":"Translation!C77","v":0}]
[]
[null,null,"Výběry pro MD NG"]
[{"$nulls":4},{"$f":"Translation!G75","v":0},{"$f":"Translation!G92","v":0}]
[]
[{"$nulls":4},{"$f":"Translation!G86","v":0},{"$f":"Translation!G118","v":0}]
[{"$nulls":4},{"$f":"Translation!G87","v":0},{"$f":"Translation!G119","v":0}]
[{"$nulls":4},{"$f":"Translation!G88","v":0},{"$f":"Translation!G120","v":0}]
[{"$nulls":3},"672; 9010/9010",{"$f":"Translation!G89","v":0},{"$f":"Translation!G121","v":0}]
[{"$nulls":4},{"$f":"Translation!G79","v":0},{"$f":"Translation!G122","v":0}]
[{"$nulls":4},{"$f":"Translation!G90","v":0},{"$f":"Translation!G123","v":0}]
[{"$nulls":4},{"$f":"Translation!G81","v":0},{"$f":"Translation!G124","v":0}]
[{"$nulls":4},{"$f":"Translation!G91","v":0}]
[{"$nulls":4},{"$f":"Translation!G82","v":0}]
[{"$nulls":4},{"$f":"Translation!G78","v":0}]
[{"$nulls":4},{"$f":"Translation!G80","v":0}]
[{"$nulls":4},{"$f":"Translation!G76","v":0}]
[{"$nulls":4},{"$f":"Translation!G77","v":0}]
[]
[null,null,"Výběry pro WD NG (2LD - double leaf door)"]
[{"$nulls":4},{"$f":"Translation!H75","v":"Okna"},{"$f":"Translation!H92","v":"Full Vision sekce"}]
[]
[{"$nulls":4},{"$f":"Translation!H86","v":"204; Hranaté 3"},{"$f":"Translation!H118","v":"250; Dvoustěnné prosklení SAN UV"}]
[{"$nulls":4},{"$f":"Translation!H87","v":"206; Hranaté 4"},{"$f":"Translation!H119","v":"220; Jednostěnné prosklení SAN UV"}]
[{"$nulls":4},{"$f":"Translation!H88","v":"210; Hranaté 7"},{"$f":"Translation!H120","v":"260; Dvoustěnné prosklení polykarbonát"}]
[{"$nulls":4},{"$f":"Translation!H89","v":"208; Hranaté 5"},{"$f":"Translation!H121","v":"230; Jednostěnné prosklení polykarbonát"}]
[{"$nulls":4},{"$f":"Translation!H79","v":"216; Hranaté 9"},{"$f":"Translation!H122","v":"250.10; Dvoustěnné prosklení SAN UV, 1x ANTI SCRATCH"}]
[{"$nulls":4},{"$f":"Translation!H90","v":"202; Hranaté 10"},{"$f":"Translation!H123","v":"250.20; Dvoustěnné prosklení SAN UV, 2x ANTI SCRATCH"}]
[{"$nulls":4},{"$f":"Translation!H81","v":"218; Hranaté NEREZ"},{"$f":"Translation!H124","v":"250.Co; Dvoustěnné prosklení SAN UV; barevné"}]
[{"$nulls":4},{"$f":"Translation!H91","v":"219; Hranaté nerez"}]
[{"$nulls":4},{"$f":"Translation!H82","v":"215; Kulaté NEREZ"}]
[{"$nulls":4},{"$f":"Translation!H78","v":"207; Hranaté 2"}]
[{"$nulls":4},{"$f":"Translation!H80","v":"217; Kulaté"}]
[{"$nulls":4},{"$f":"Translation!H76","v":"203; Oválné 1, CLICK"}]
[{"$nulls":4},{"$f":"Translation!H77","v":"205; Hranaté 1, CLICK"}]
[]
[]
[]
[{"$nulls":55},1649]